[Event "Klatovy Open-B 2024"]
[Site "Klatovy"]
[Date "2024.06.29"]
[Round "1.13"]
[White "Strihavka, Petr"]
[Black "Pucholt, Martin"]
[Result "1-0"]
[ECO "B43"]
[WhiteElo "1518"]
[BlackElo "1752"]
[Annotator "NA RC"]
[PlyCount "89"]
[EventDate "2024.06.21"]
[EventType "swiss"]
[EventCountry "CZE"]
[SourceTitle "playchess.com"]
[Source "ChessBase"]
[SourceQuality "1"]
[TimeControl "40/7200:0"]

1. e4 {[%emt 0:00:00]} c5 {[%emt 0:00:00]} 2. Nf3 {[%emt 0:00:00]} e6 {[%emt 0:00:00]} 3. d4 {[%emt 0:00:00]} cxd4 {[%emt 0:00:00]} 4. Nxd4 {[%emt 0:00:00]} a6 {[%emt 0:00:00]} 5. Nc3 {[%emt 0:00:00]} Qc7 {[%emt 0:00:00]} 6. Be3 {[%emt 0:00:00]} Nf6 {[%emt 0:00:00]} 7. Be2 {[%emt 0:00:00]} Bb4 {[%emt 0:01:05]} 8. Bd2 {[%emt 0:02:20]} Bxc3 {[%emt 0:00:31]} 9. Bxc3 {[%emt 0:00:00]} Nxe4 {[%emt 0:00:14]} 10. Qd3 {[%emt 0:00:04]} Nxc3 {[%emt 0:00:26]} 11. bxc3 {[%emt 0:00:00]} O-O {[%emt 0:00:58]} 12. O-O {[%emt 0:00:28]} Nc6 {[%emt 0:01:38]} 13. Nxc6 {[%emt 0:00:00]} dxc6 {[%emt 0:00:32]} 14. Qh3 {[%emt 0:00:13]} e5 {[%emt 0:00:40]} 15. Qg3 {[%emt 0:00:11]} Be6 {[%emt 0:00:42]} 16. Bd3 {[%emt 0:01:33]} f5 {[%emt 0:02:15]} 17. Rfe1 {[%emt 0:01:40]} Rf6 {[%emt 0:04:22]} 18. Rxe5 {[%emt 0:02:07]} Raf8 {[%emt 0:02:27]} 19. a4 {[%emt 0:07:06]} Qf7 {[%emt 0:07:04]} 20. Rae1 {[%emt 0:00:32]} Rg6 {[%emt 0:04:19]} 21. Qf4 {[%emt 0:01:46]} Rg4 {[%emt 0:04:07]} 22. Qe3 {[%emt 0:02:26]} Bd5 {[%emt 0:03:45]} 23. f3 {[%emt 0:01:11]} f4 {[%emt 0:14:25]} 24. Qf2 {[%emt 0:00:00]} Rg6 {[%emt 0:04:05]} 25. Bxg6 {[%emt 0:00:00]} Qxg6 {[%emt 0:00:27]} 26. Re7 {[%emt 0:00:46]} b5 {[%emt 0:01:57]} 27. a5 {[%emt 0:01:13]} h5 {[%emt 0:04:39]} 28. Ra7 {[%emt 0:00:32]} c5 {[%emt 0:00:40]} 29. Ree7 {[%emt 0:00:23]} Rf7 {[%emt 0:01:19]} 30. Re8+ {[%emt 0:05:19]} Kh7 {[%emt 0:01:45]} 31. Rxf7 {[%emt 0:00:25]} Qxf7 {[%emt 0:00:31]} 32. Re5 {[%emt 0:01:41]} Bc4 {[%emt 0:04:11]} 33. Qxc5 {[%emt 0:00:30]} Qd7 {[%emt 0:01:33]} 34. Rxh5+ {[%emt 0:00:33]} Kg8 {[%emt 0:00:08]} 35. Qd4 {[%emt 0:00:00]} Qc7 {[%emt 0:03:40]} 36. Qb6 {[%emt 0:00:53]} Qe7 {[%emt 0:00:44]} 37. Qb8+ {[%emt 0:00:21]} Kf7 {[%emt 0:01:04]} 38. Qxf4+ {[%emt 0:00:39]} Kg8 {[%emt 0:00:27]} 39. Qb8+ {[%emt 0:00:00]} Kf7 {[%emt 0:00:03]} 40. Rf5+ {[%emt 0:00:20]} Kg6 {[%emt 0:02:15]} 41. Qe5 {[%emt 1:59:57]} Qa7+ {[%emt 2:00:15]} 42. Qc5 {[%emt 0:00:06]} Qd7 {[%emt 0:00:48]} 43. Rg5+ {[%emt 0:00:28]} Kf6 {[%emt 0:02:06]} 44. Qe5+ {[%emt 0:00:00]} Kf7 {[%emt 0:00:00]} 45. Rxg7+ {[%emt 0:00:00]} 1-0

[Event "Klatovy Open-B 2024"]
[Site "Klatovy"]
[Date "2024.06.29"]
[Round "1.14"]
[White "Studnicka, Ondrej"]
[Black "Koutecky, Vaclav"]
[Result "1-0"]
[ECO "C24"]
[WhiteElo "1748"]
[BlackElo "2060"]
[Annotator "RC"]
[PlyCount "39"]
[EventDate "2024.06.21"]
[EventType "swiss"]
[EventCountry "CZE"]
[SourceTitle "playchess.com"]
[Source "ChessBase"]
[SourceQuality "1"]
[TimeControl "40/7200:0"]

1. e4 {[%emt 0:00:00]} e5 {[%emt 0:00:00]} 2. Nf3 {[%emt 0:00:00]} Nc6 {[%emt 0:00:00]} 3. Bc4 {[%emt 0:00:00]} Nf6 {[%emt 0:00:00]} 4. d3 {[%emt 0:00:00]} d5 {[%emt 0:00:00]} 5. exd5 {[%emt 0:00:08]} Nxd5 {[%emt 0:00:00]} 6. O-O {[%emt 0:01:10]} Bg4 {[%emt 0:00:00]} 7. h3 {[%emt 0:01:56]} Bxf3 {[%emt 0:00:00]} 8. Qxf3 {[%emt 0:00:05]} Nf6 {[%emt 0:00:00]} 9. c3 {[%emt 0:01:21]} Be7 {[%emt 0:00:31]} 10. Bg5 {[%emt 0:05:13]} O-O {[%emt 0:00:13]} 11. Nd2 {[%emt 0:00:33]} e4 {[%emt 0:07:01]} 12. dxe4 {[%emt 0:04:32]} Ne5 {[%emt 0:00:15]} 13. Qe2 {[%emt 0:01:24]} Nxc4 {[%emt 0:01:04]} 14. Nxc4 {[%emt 0:00:30]} Re8 {[%emt 0:03:20]} 15. Rad1 {[%emt 0:02:27]} Qc8 {[%emt 0:01:19]} 16. e5 {[%emt 0:07:43]} Nd7 {[%emt 0:01:24]} 17. Bxe7 {[%emt 0:09:11]} Rxe7 {[%emt 0:00:00]} 18. f4 {[%emt 0:00:29]} f6 {[%emt 0:02:09]} 19. e6 {[%emt 0:01:35]} Qd8 {[%emt 0:04:27]} 20. Qg4 {[%emt 1:21:43]} 1-0

[Event "Klatovy Open-B 2024"]
[Site "Klatovy"]
[Date "2024.06.30"]
[Round "2.1"]
[White "Kaderabek, Jiri"]
[Black "Stanke, Petr"]
[Result "1-0"]
[ECO "A10"]
[WhiteElo "1984"]
[BlackElo "1683"]
[Annotator "NA RC"]
[PlyCount "37"]
[EventDate "2024.06.21"]
[EventType "swiss"]
[EventCountry "CZE"]
[SourceTitle "playchess.com"]
[Source "ChessBase"]
[SourceQuality "1"]
[TimeControl "40/7200:0"]

1. c4 {[%emt 0:08:07]} f5 {[%emt 0:00:00]} 2. Nf3 {[%emt 0:00:44]} Nf6 {[%emt 0:00:27]} 3. d3 {[%emt 0:00:15]} e6 {[%emt 0:01:30]} 4. g3 {[%emt 0:00:00]} Be7 {[%emt 0:01:10]} 5. Bg2 {[%emt 0:00:00]} d5 {[%emt 0:00:11]} 6. O-O {[%emt 0:00:18]} O-O {[%emt 0:00:27]} 7. Bf4 {[%emt 0:03:48]} c6 {[%emt 0:02:24]} 8. Qc2 {[%emt 0:04:45]} Nh5 {[%emt 0:11:49]} 9. Be5 {[%emt 0:04:19]} Nd7 {[%emt 0:04:46]} 10. Bc3 {[%emt 0:01:12]} Bd6 {[%emt 0:02:29]} 11. e4 {[%emt 0:03:38]} Qc7 {[%emt 0:13:47]} 12. Nd4 {[%emt 0:02:13]} Ndf6 {[%emt 0:10:05]} 13. cxd5 {[%emt 0:00:03]} exd5 {[%emt 0:13:22]} 14. exf5 {[%emt 0:01:22]} Be5 {[%emt 0:05:24]} 15. Na3 {[%emt 0:02:10]} a6 {[%emt 0:06:24]} 16. Ne6 {[%emt 0:02:18]} Bxe6 {[%emt 0:03:04]} 17. fxe6 {[%emt 0:00:00]} Rfe8 {[%emt 0:06:55]} 18. Rae1 {[%emt 0:01:53]} Rxe6 {[%emt 0:04:13]} 19. d4 {[%emt 0:00:18]} 1-0

[Event "Klatovy Open-B 2024"]
[Site "Klatovy"]
[Date "2024.06.30"]
[Round "2.2"]
[White "Masek, Jan"]
[Black "Stastny, Matej"]
[Result "1-0"]
[ECO "B12"]
[WhiteElo "1839"]
[BlackElo "1674"]
[Annotator "NA RC"]
[PlyCount "29"]
[EventDate "2024.06.21"]
[EventType "swiss"]
[EventCountry "CZE"]
[SourceTitle "playchess.com"]
[Source "ChessBase"]
[SourceQuality "1"]
[TimeControl "40/7200:0"]

1. e4 {[%emt 0:05:02]} c6 {[%emt 0:00:00]} 2. d4 {[%emt 0:00:00]} d5 {[%emt 0:00:00]} 3. e5 {[%emt 0:00:00]} c5 {[%emt 0:00:00]} 4. Nf3 {[%emt 0:00:00]} Nc6 {[%emt 0:00:00]} 5. Bb5 {[%emt 0:00:00]} Bg4 {[%emt 0:00:00]} 6. Be3 {[%emt 0:02:08]} cxd4 {[%emt 0:02:32]} 7. Qxd4 {[%emt 0:05:08]} e6 {[%emt 0:04:54]} 8. Qxg4 {[%emt 0:00:00]} Nge7 {[%emt 0:02:18]} 9. O-O {[%emt 0:00:14]} Ng6 {[%emt 0:04:54]} 10. Qa4 {[%emt 0:00:03]} Qc7 {[%emt 0:01:47]} 11. Nd4 {[%emt 0:03:49]} Ngxe5 {[%emt 0:04:25]} 12. f4 {[%emt 0:00:12]} Ng4 {[%emt 0:05:49]} 13. Nxc6 {[%emt 0:22:15]} Nxe3 {[%emt 0:02:51]} 14. Rf3 {[%emt 0:14:22]} Bc5 {[%emt 0:06:25]} 15. Nd4+ {[%emt 0:00:21]} 1-0

[Event "Klatovy Open-B 2024"]
[Site "Klatovy"]
[Date "2024.06.30"]
[Round "2.3"]
[White "Sova, Zdenek"]
[Black "Janouskova, Eliska"]
[Result "0-1"]
[ECO "A32"]
[WhiteElo "1822"]
[BlackElo "1670"]
[Annotator "NA RC"]
[PlyCount "56"]
[EventDate "2024.06.21"]
[EventType "swiss"]
[EventCountry "CZE"]
[SourceTitle "playchess.com"]
[Source "ChessBase"]
[SourceQuality "1"]
[TimeControl "40/7200:0"]

1. Nf3 {[%emt 0:00:00]} c5 {[%emt 0:00:00]} 2. c4 {[%emt 0:00:00]} Nf6 {[%emt 0:00:00]} 3. Nc3 {[%emt 0:00:00]} e6 {[%emt 0:00:00]} 4. d4 {[%emt 0:00:00]} cxd4 {[%emt 0:00:00]} 5. Nxd4 {[%emt 0:00:05]} d6 {[%emt 0:01:48]} 6. e3 {[%emt 0:00:41]} Be7 {[%emt 0:01:04]} 7. Bd3 {[%emt 0:00:43]} O-O {[%emt 0:03:24]} 8. O-O {[%emt 0:00:00]} a6 {[%emt 0:02:30]} 9. b3 {[%emt 0:02:23]} Qc7 {[%emt 0:03:00]} 10. Bb2 {[%emt 0:01:12]} Nbd7 {[%emt 0:01:50]} 11. Rc1 {[%emt 0:00:23]} Nc5 {[%emt 0:01:39]} 12. Bb1 {[%emt 0:00:45]} b6 {[%emt 0:04:27]} 13. Qe2 {[%emt 0:05:12]} Bb7 {[%emt 0:03:02]} 14. f3 {[%emt 0:06:34]} Rfd8 {[%emt 0:04:50]} 15. Kh1 {[%emt 0:07:04]} Rac8 {[%emt 0:07:47]} 16. Nd1 {[%emt 0:04:46]} Qb8 {[%emt 0:06:40]} 17. Nf2 {[%emt 0:01:14]} d5 {[%emt 0:03:13]} 18. cxd5 {[%emt 0:03:51]} Rxd5 {[%emt 0:09:19]} 19. e4 {[%emt 0:16:42]} Rh5 {[%emt 0:08:19]} 20. Nh3 {[%emt 0:08:55]} Bd6 {[%emt 0:06:22]} 21. Nc2 {[%emt 0:07:04]} Bxh2 {[%emt 0:07:20]} 22. Bxf6 {[%emt 0:00:00]} gxf6 {[%emt 0:01:15]} 23. f4 {[%emt 0:00:37]} Rxh3 {[%emt 0:02:15]} 24. gxh3 {[%emt 0:00:06]} Bxf4 {[%emt 0:02:58]} 25. Qg4+ {[%emt 0:00:00]} Bg5 {[%emt 0:02:58]} 26. h4 {[%emt 0:01:09]} Bxe4+ {[%emt 0:00:53]} 27. Kg1 {[%emt 0:00:01]} h5 {[%emt 0:02:30]} 28. Qxh5 {[%emt 0:00:00]} Qg3# {[%emt 0:00:00]} 0-1

[Event "Klatovy Open-B 2024"]
[Site "Klatovy"]
[Date "2024.06.30"]
[Round "2.4"]
[White "Vrzal, Vaclav"]
[Black "Chmelik, Ladislav"]
[Result "0-1"]
[ECO "B01"]
[WhiteElo "1682"]
[BlackElo "1795"]
[Annotator "NA RC"]
[PlyCount "48"]
[EventDate "2024.06.21"]
[EventType "swiss"]
[EventCountry "CZE"]
[SourceTitle "playchess.com"]
[Source "ChessBase"]
[SourceQuality "1"]
[TimeControl "40/7200:0"]

1. e4 {[%emt 0:00:00]} d5 {[%emt 0:00:00]} 2. exd5 {[%emt 0:00:00]} Qxd5 {[%emt 0:00:00]} 3. Nf3 {[%emt 0:00:00]} Bg4 {[%emt 0:00:00]} 4. Be2 {[%emt 0:00:00]} Nf6 {[%emt 0:00:00]} 5. d4 {[%emt 0:00:00]} e6 {[%emt 0:00:00]} 6. h3 {[%emt 0:00:00]} Bh5 {[%emt 0:01:28]} 7. c4 {[%emt 0:00:00]} Bb4+ {[%emt 0:00:19]} 8. Nc3 {[%emt 0:00:45]} Bxc3+ {[%emt 0:05:21]} 9. bxc3 {[%emt 0:00:00]} Qa5 {[%emt 0:00:00]} 10. Qb3 {[%emt 0:04:37]} Qb6 {[%emt 0:16:28]} 11. O-O {[%emt 0:08:00]} O-O {[%emt 0:00:00]} 12. Re1 {[%emt 0:04:03]} Nbd7 {[%emt 0:03:59]} 13. Ba3 {[%emt 0:17:25]} Rfe8 {[%emt 0:00:07]} 14. Ne5 {[%emt 0:00:41]} Bxe2 {[%emt 0:09:19]} 15. Rxe2 {[%emt 0:00:22]} Nxe5 {[%emt 0:07:33]} 16. Rxe5 {[%emt 0:00:10]} Nd7 {[%emt 0:00:00]} 17. Rb5 {[%emt 0:02:41]} Qc6 {[%emt 0:00:00]} 18. Rxb7 {[%emt 0:02:30]} Nb6 {[%emt 0:00:00]} 19. c5 {[%emt 0:01:11]} Qxb7 {[%emt 0:00:00]} 20. cxb6 {[%emt 0:01:26]} axb6 {[%emt 0:00:00]} 21. f4 {[%emt 0:01:49]} Qa6 {[%emt 0:01:33]} 22. Bb4 {[%emt 0:02:11]} Qe2 {[%emt 0:00:00]} 23. Rf1 {[%emt 0:02:17]} Rxa2 {[%emt 0:00:00]} 24. Qd1 {[%emt 0:02:16]} Qxg2# {[%emt 0:00:00]} 0-1

[Event "Klatovy Open-B 2024"]
[Site "Klatovy"]
[Date "2024.06.30"]
[Round "2.5"]
[White "Trejbal, Jindrich"]
[Black "Marko, Ondrej"]
[Result "1-0"]
[ECO "C41"]
[WhiteElo "1953"]
[BlackElo "1786"]
[Annotator "RC"]
[PlyCount "105"]
[EventDate "2024.06.21"]
[EventType "swiss"]
[EventCountry "CZE"]
[SourceTitle "playchess.com"]
[Source "ChessBase"]
[SourceQuality "1"]
[TimeControl "40/7200:0"]

1. e4 {[%emt 0:00:00]} d6 {[%emt 0:00:00]} 2. Nf3 {[%emt 0:00:00]} Nf6 {[%emt 0:00:00]} 3. Nc3 {[%emt 0:00:00]} e5 {[%emt 0:00:00]} 4. d4 {[%emt 0:00:00]} exd4 {[%emt 0:00:00]} 5. Nxd4 {[%emt 2:00:00]} h6 {[%emt 0:00:00]} 6. Be2 {[%emt 0:00:00]} Nc6 {[%emt 0:00:14]} 7. Be3 {[%emt 0:00:00]} Be7 {[%emt 0:01:13]} 8. h3 {[%emt 0:00:00]} Nxd4 {[%emt 0:01:45]} 9. Qxd4 {[%emt 0:00:00]} Bd7 {[%emt 0:07:25]} 10. O-O-O {[%emt 0:00:00]} c5 {[%emt 0:02:39]} 11. Qd2 {[%emt 0:00:00]} a6 {[%emt 0:00:11]} 12. f4 {[%emt 0:00:00]} b5 {[%emt 0:06:30]} 13. e5 {[%emt 0:00:00]} b4 {[%emt 0:00:14]} 14. Nd5 {[%emt 0:00:00]} Nxd5 {[%emt 0:05:09]} 15. Qxd5 {[%emt 0:00:00]} Be6 {[%emt 0:02:43]} 16. Qc6+ {[%emt 0:00:00]} Bd7 {[%emt 0:00:10]} 17. Qe4 {[%emt 0:00:00]} O-O {[%emt 0:09:58]} 18. exd6 {[%emt 0:00:00]} Bf6 {[%emt 0:00:00]} 19. Bd3 {[%emt 0:00:00]} g6 {[%emt 0:00:00]} 20. h4 {[%emt 0:00:00]} Re8 {[%emt 0:10:41]} 21. Qf3 {[%emt 0:00:00]} h5 {[%emt 0:00:03]} 22. f5 {[%emt 0:00:00]} Rxe3 {[%emt 0:26:41]} 23. Qxe3 {[%emt 0:00:00]} Bxh4 {[%emt 0:00:00]} 24. Rxh4 {[%emt 0:00:00]} Qxh4 {[%emt 0:00:00]} 25. fxg6 {[%emt 0:00:00]} fxg6 {[%emt 0:00:01]} 26. Bxg6 {[%emt 0:00:00]} Kg7 {[%emt 0:03:02]} 27. Qe7+ {[%emt 0:00:00]} Qxe7 {[%emt 0:00:06]} 28. dxe7 {[%emt 0:00:00]} Kxg6 {[%emt 0:04:49]} 29. Rxd7 {[%emt 0:00:00]} Re8 {[%emt 0:00:01]} 30. Kd2 {[%emt 0:00:00]} Kf7 {[%emt 0:00:53]} 31. Kd3 {[%emt 0:00:00]} Ke6 {[%emt 0:00:08]} 32. Ra7 {[%emt 0:00:00]} Kd5 {[%emt 0:02:35]} 33. Ke3 {[%emt 0:00:00]} Ke5 {[%emt 0:01:18]} 34. Kf3 {[%emt 0:00:00]} c4 {[%emt 0:07:58]} 35. Rd7 {[%emt 0:00:00]} a5 {[%emt 0:00:19]} 36. c3 {[%emt 0:00:00]} bxc3 {[%emt 0:02:32]} 37. bxc3 {[%emt 0:00:00]} a4 {[%emt 0:00:00]} 38. Rd4 {[%emt 0:00:00]} Kf5 {[%emt 0:01:03]} 39. Re4 {[%emt 0:00:00]} a3 {[%emt 0:01:21]} 40. Ke3 {[%emt 0:00:00]} Kg5 {[%emt 0:02:06]} 41. Kd4 {[%emt 0:56:15]} Kf5 {[%emt 1:59:47]} 42. Re2 {[%emt 0:00:07]} Kf6 {[%emt 0:01:31]} 43. Kxc4 {[%emt 0:00:00]} Kf7 {[%emt 0:00:00]} 44. Kd5 {[%emt 0:00:10]} Rxe7 {[%emt 0:00:59]} 45. Rxe7+ {[%emt 0:00:00]} Kxe7 {[%emt 0:00:00]} 46. Kc6 {[%emt 0:00:00]} Kf6 {[%emt 0:00:00]} 47. Kd6 {[%emt 0:00:00]} Kf5 {[%emt 0:00:00]} 48. c4 {[%emt 0:00:00]} Kg4 {[%emt 0:00:00]} 49. c5 {[%emt 0:00:00]} Kg3 {[%emt 0:00:00]} 50. c6 {[%emt 0:00:00]} Kxg2 {[%emt 0:00:00]} 51. c7 {[%emt 0:00:00]} h4 {[%emt 0:00:00]} 52. c8=Q {[%emt 0:00:00]} h3 {[%emt 0:00:00]} 53. Qg4+ {[%emt 0:00:00]} 1-0

[Event "Klatovy Open-B 2024"]
[Site "Klatovy"]
[Date "2024.06.30"]
[Round "2.6"]
[White "Slansky, Jachym"]
[Black "Studnicka, Ondrej"]
[Result "1-0"]
[ECO "B25"]
[WhiteElo "1665"]
[BlackElo "1748"]
[Annotator "NA RC"]
[PlyCount "65"]
[EventDate "2024.06.21"]
[EventType "swiss"]
[EventCountry "CZE"]
[SourceTitle "playchess.com"]
[Source "ChessBase"]
[SourceQuality "1"]
[TimeControl "40/7200:0"]

1. e4 {[%emt 0:00:00]} c5 {[%emt 0:00:00]} 2. Nc3 {[%emt 0:00:00]} Nc6 {[%emt 0:00:00]} 3. g3 {[%emt 0:00:00]} Nf6 {[%emt 0:00:32]} 4. Bg2 {[%emt 0:00:00]} g6 {[%emt 0:02:09]} 5. d3 {[%emt 0:00:00]} Bg7 {[%emt 0:01:18]} 6. f4 {[%emt 0:00:25]} d6 {[%emt 0:02:31]} 7. Nf3 {[%emt 0:00:26]} O-O {[%emt 0:04:37]} 8. O-O {[%emt 0:00:30]} Bd7 {[%emt 0:01:13]} 9. h3 {[%emt 0:02:26]} Rb8 {[%emt 0:08:02]} 10. g4 {[%emt 0:03:49]} Nxg4 {[%emt 0:04:12]} 11. hxg4 {[%emt 0:00:55]} Bxg4 {[%emt 0:00:00]} 12. Ne2 {[%emt 0:09:21]} Qd7 {[%emt 0:01:45]} 13. c3 {[%emt 0:04:13]} e5 {[%emt 0:15:49]} 14. Qe1 {[%emt 0:07:04]} f5 {[%emt 0:04:59]} 15. Qh4 {[%emt 0:09:06]} Bf6 {[%emt 0:05:31]} 16. Qh2 {[%emt 0:03:35]} Rbe8 {[%emt 0:03:55]} 17. Ng3 {[%emt 0:07:43]} Bg7 {[%emt 0:06:04]} 18. Bh3 {[%emt 0:06:17]} fxe4 {[%emt 0:01:04]} 19. Nxe4 {[%emt 0:03:12]} Bxh3 {[%emt 0:00:00]} 20. Nfg5 {[%emt 0:00:26]} exf4 {[%emt 0:08:32]} 21. Qxh3 {[%emt 0:02:20]} Qxh3 {[%emt 0:00:52]} 22. Nxh3 {[%emt 0:00:00]} Be5 {[%emt 0:05:16]} 23. Bxf4 {[%emt 0:02:25]} Rd8 {[%emt 0:04:08]} 24. Bh6 {[%emt 0:04:02]} Rxf1+ {[%emt 0:01:37]} 25. Rxf1 {[%emt 0:00:37]} Ne7 {[%emt 0:00:24]} 26. Nf6+ {[%emt 0:11:19]} Bxf6 {[%emt 0:00:08]} 27. Rxf6 {[%emt 0:01:38]} Nf5 {[%emt 0:00:00]} 28. Bg5 {[%emt 0:00:52]} Re8 {[%emt 0:00:06]} 29. Nf4 {[%emt 0:03:34]} Kg7 {[%emt 0:03:55]} 30. Kf2 {[%emt 0:03:11]} h6 {[%emt 0:02:03]} 31. Rxg6+ {[%emt 0:00:00]} Kh7 {[%emt 0:00:00]} 32. Bf6 {[%emt 0:07:46]} Re6 {[%emt 0:00:52]} 33. Kf3 {[%emt 0:22:48]} 1-0

[Event "Klatovy Open-B 2024"]
[Site "Klatovy"]
[Date "2024.06.30"]
[Round "2.7"]
[White "Tejnor, Martin"]
[Black "Jelinek, Jan"]
[Result "1/2-1/2"]
[ECO "D02"]
[WhiteElo "1732"]
[BlackElo "1662"]
[Annotator "NA RC"]
[PlyCount "109"]
[EventDate "2024.06.21"]
[EventType "swiss"]
[EventCountry "CZE"]
[SourceTitle "playchess.com"]
[Source "ChessBase"]
[SourceQuality "1"]
[TimeControl "40/7200:0"]

1. e4 {[%emt 0:29:30]} c5 {[%emt 0:29:30]} 2. Nf3 {[%emt 0:00:00]} e6 {[%emt 0:00:00]} 3. d4 {[%emt 0:00:00]} d5 {[%emt 0:00:00]} 4. exd5 {[%emt 0:00:00]} exd5 {[%emt 0:00:00]} 5. dxc5 {[%emt 0:00:00]} Bxc5 {[%emt 0:00:00]} 6. Nd4 {[%emt 0:00:00]} Qb6 {[%emt 0:00:00]} 7. Bb5+ {[%emt 0:00:00]} Nc6 {[%emt 0:00:00]} 8. Qe2+ {[%emt 0:00:00]} Nge7 {[%emt 0:00:00]} 9. Nb3 {[%emt 0:00:00]} Bxf2+ 10. Qxf2 {[%emt 0:01:37]} Qxb5 {[%emt 0:00:00]} 11. Nc3 {[%emt 1:28:53]} Qc4 {[%emt 0:00:00]} 12. Be3 {[%emt 0:00:00]} Bg4 {[%emt 1:30:30]} 13. h3 {[%emt 0:00:00]} Bh5 {[%emt 0:00:00]} 14. g4 {[%emt 0:00:00]} Bg6 {[%emt 0:00:00]} 15. O-O-O {[%emt 0:00:00]} O-O {[%emt 0:00:00]} 16. Nd4 {[%emt 0:00:00]} Nb4 {[%emt 0:00:00]} 17. a3 {[%emt 0:00:00]} Na2+ {[%emt 0:00:00]} 18. Nxa2 {[%emt 0:00:00]} Qxa2 {[%emt 0:00:00]} 19. Nb3 {[%emt 0:00:00]} Rfc8 {[%emt 0:00:00]} 20. Bc5 {[%emt 0:00:00]} b6 {[%emt 0:00:00]} 21. Bxe7 {[%emt 0:00:00]} Bxc2 {[%emt 0:00:00]} 22. Qxc2 {[%emt 0:00:00]} Rxc2+ {[%emt 0:00:00]} 23. Kxc2 {[%emt 0:00:00]} Rc8+ {[%emt 0:00:00]} 24. Bc5 {[%emt 0:00:00]} Rxc5+ {[%emt 0:00:00]} 25. Nxc5 {[%emt 0:00:00]} bxc5 {[%emt 0:00:00]} 26. Rhe1 {[%emt 0:00:00]} f6 {[%emt 0:00:00]} 27. Re8+ {[%emt 0:00:00]} Kf7 {[%emt 0:00:00]} 28. Rde1 {[%emt 0:00:00]} Kg6 {[%emt 0:00:00]} 29. R1e7 {[%emt 0:00:00]} a6 {[%emt 0:00:00]} 30. Rg8 {[%emt 0:00:00]} Qc4+ {[%emt 0:00:00]} 31. Kb1 {[%emt 0:00:00]} Qd3+ {[%emt 0:00:00]} 32. Ka1 {[%emt 0:00:00]} Qd1+ {[%emt 0:00:00]} 33. Ka2 {[%emt 0:00:00]} Kg5 {[%emt 0:00:00]} 34. Rgxg7+ {[%emt 0:00:00]} Kf4 {[%emt 0:00:00]} 35. Rgf7 {[%emt 0:00:00]} Qd4 {[%emt 0:00:00]} 36. Re6 {[%emt 0:00:00]} Kg3 {[%emt 0:00:00]} 37. Rexf6 {[%emt 0:00:00]} Kxh3 {[%emt 0:00:00]} 38. Rxh7+ {[%emt 0:00:00]} Kg3 {[%emt 0:00:00]} 39. Rhf7 {[%emt 0:00:00]} Qc4+ {[%emt 0:00:00]} 40. Ka1 {[%emt 0:00:00]} d4 {[%emt 0:00:00]} 41. Rf3+ {[%emt 1:13:11]} Kh4 {[%emt 1:29:28]} 42. Rh7+ {[%emt 0:00:39]} Kg5 {[%emt 0:00:47]} 43. Rf5+ {[%emt 0:00:22]} Kxg4 {[%emt 0:00:40]} 44. Rf6 {[%emt 0:00:26]} d3 {[%emt 0:01:13]} 45. Rg7+ {[%emt 0:00:24]} Kh5 {[%emt 0:00:00]} 46. Rd6 {[%emt 0:00:55]} Qc1+ {[%emt 0:00:00]} 47. Ka2 {[%emt 0:00:29]} c4 {[%emt 0:00:16]} 48. Rc7 {[%emt 0:01:00]} Qc2 {[%emt 0:00:18]} 49. Rc5+ {[%emt 0:00:00]} Kg4 {[%emt 0:00:00]} 50. Rd4+ {[%emt 0:00:00]} Kf3 {[%emt 0:00:00]} 51. Rcxc4 {[%emt 0:00:00]} Qe2 {[%emt 0:02:18]} 52. Rc3 {[%emt 0:00:00]} Qe6+ {[%emt 0:01:01]} 53. Kb1 {[%emt 0:00:33]} Qe1+ {[%emt 0:00:17]} 54. Ka2 {[%emt 0:00:28]} Qe6+ {[%emt 0:00:26]} 55. Kb1 {[%emt 0:03:38]} 1/2-1/2

[Event "Klatovy Open-B 2024"]
[Site "Klatovy"]
[Date "2024.06.30"]
[Round "2.8"]
[White "Mascak, Milan"]
[Black "Lickova, Anna"]
[Result "0-1"]
[ECO "D02"]
[WhiteElo "1662"]
[BlackElo "1725"]
[Annotator "NA RC"]
[PlyCount "80"]
[EventDate "2024.06.21"]
[EventType "swiss"]
[EventCountry "CZE"]
[SourceTitle "playchess.com"]
[Source "ChessBase"]
[SourceQuality "1"]
[TimeControl "40/7200:0"]

1. Nf3 {[%emt 0:00:00]} d5 {[%emt 0:00:00]} 2. d4 {[%emt 0:00:00]} c5 {[%emt 0:00:00]} 3. e3 {[%emt 0:00:00]} e6 {[%emt 0:00:27]} 4. c3 {[%emt 0:00:00]} Nc6 {[%emt 0:02:03]} 5. Bd3 {[%emt 0:02:17]} c4 {[%emt 0:01:12]} 6. Bc2 {[%emt 0:01:00]} Bd6 {[%emt 0:01:11]} 7. Nbd2 {[%emt 0:00:39]} Nf6 {[%emt 0:00:49]} 8. O-O {[%emt 0:00:00]} O-O {[%emt 0:01:05]} 9. Re1 {[%emt 0:02:04]} Re8 {[%emt 0:02:12]} 10. Qe2 {[%emt 0:01:37]} e5 {[%emt 0:02:05]} 11. dxe5 {[%emt 0:04:31]} Bxe5 {[%emt 0:02:34]} 12. Nxe5 {[%emt 0:04:39]} Nxe5 {[%emt 0:02:58]} 13. h3 {[%emt 0:01:24]} Qc7 {[%emt 0:03:53]} 14. Nf3 {[%emt 0:03:54]} Nxf3+ {[%emt 0:08:42]} 15. Qxf3 {[%emt 0:00:09]} b6 {[%emt 0:00:34]} 16. Rd1 {[%emt 0:01:41]} Bb7 {[%emt 0:03:02]} 17. Rd4 {[%emt 0:00:41]} Qe5 {[%emt 0:15:02]} 18. Rf4 {[%emt 0:07:41]} Qe7 {[%emt 0:03:16]} 19. Qe2 {[%emt 0:08:44]} Qd6 {[%emt 0:06:45]} 20. Bd2 {[%emt 0:01:32]} Qxf4 {[%emt 0:01:13]} 21. e4 {[%emt 0:02:06]} Qd6 {[%emt 0:01:07]} 22. Be3 {[%emt 0:01:19]} Nxe4 {[%emt 0:01:11]} 23. Rd1 {[%emt 0:00:00]} Qe6 {[%emt 0:01:16]} 24. Rd4 {[%emt 0:01:20]} Rad8 {[%emt 0:05:50]} 25. Qd1 {[%emt 0:01:24]} Qe7 {[%emt 0:05:14]} 26. Ba4 {[%emt 0:01:34]} Rf8 {[%emt 0:00:41]} 27. Qg4 {[%emt 0:00:27]} f5 {[%emt 0:01:18]} 28. Qf3 {[%emt 0:11:50]} Rd6 {[%emt 0:04:38]} 29. Bf4 {[%emt 0:02:16]} Re6 {[%emt 0:01:25]} 30. Bc2 {[%emt 0:02:01]} b5 {[%emt 0:06:23]} 31. Qh5 {[%emt 0:04:11]} Qf7 {[%emt 0:01:52]} 32. Qf3 {[%emt 0:03:52]} a5 {[%emt 0:00:22]} 33. h4 {[%emt 0:01:10]} b4 {[%emt 0:00:08]} 34. h5 {[%emt 0:00:31]} bxc3 {[%emt 0:00:10]} 35. bxc3 {[%emt 0:00:00]} Rb6 {[%emt 0:01:50]} 36. h6 {[%emt 0:00:39]} Rb2 {[%emt 0:03:35]} 37. hxg7 {[%emt 0:00:33]} Qxg7 {[%emt 0:00:07]} 38. Bxe4 {[%emt 0:01:58]} fxe4 {[%emt 0:00:04]} 39. Qe3 {[%emt 0:00:00]} Qg4 {[%emt 0:01:00]} 40. Bg3 {[%emt 0:00:14]} Rb1+ {[%emt 0:00:00]} 0-1